{"text_format":"1","workbook":"xlsx","n_sheets":1,"sheets":["Годовой отчет за 2023 год"],"not_rendered":{"charts":0,"images":0,"macros":0,"external_links":0,"defined_names":0,"comments":1,"pivot_tables":0},"unopened":[],"bounds":{"document_bytes":16777216,"sheet_cells":100000,"rows_first":2000,"rows_last":500,"rows_between":2000,"halvings":0,"cell_chars":16384,"cell_head_chars":4096},"cells_cut":0,"cells_raw":0,"read":"whole","date_system":"1900"}

{"sheet":"Годовой отчет за 2023 год","index":0,"n_rows":352,"n_cols":11,"rows_kept":352,"cut":false,"hidden":false,"merged":[[169,2,169,4],[170,2,170,4],[144,1,144,3],[164,1,164,4],[226,1,227,1],[304,1,304,4],[171,2,171,4],[172,2,172,4],[218,1,218,4],[219,2,219,4],[276,4,277,4],[291,1,291,4],[292,1,292,4],[293,2,293,4],[220,2,220,4],[221,2,221,4],[165,1,165,4],[166,2,166,4],[224,2,224,4],[168,2,168,4],[13,1,13,4],[47,1,47,2],[47,3,47,4],[48,1,48,2],[48,3,48,4],[79,2,79,4],[51,1,51,2],[51,3,51,4],[78,1,78,4],[53,1,53,2],[53,3,53,4],[69,1,69,2],[69,3,69,4],[77,2,77,4],[70,1,70,2],[70,3,70,4],[72,1,72,4],[73,1,73,4],[74,3,74,4],[74,1,74,2],[75,1,75,4],[76,1,76,4],[34,1,34,4],[46,1,46,2],[46,3,46,4],[45,1,45,2],[37,2,37,3],[38,2,38,3],[44,1,44,4],[41,2,41,3],[0,1,0,4],[7,2,7,3],[1,2,1,4],[2,2,2,4],[3,1,3,4],[4,1,4,4],[5,2,5,4],[10,2,10,3],[11,2,11,3],[35,2,35,3],[36,2,36,3],[6,2,6,3],[8,2,8,3],[9,2,9,3],[12,2,12,3],[33,1,33,4],[45,3,45,4],[52,1,52,2],[52,3,52,4],[222,2,222,4],[223,2,223,4],[67,3,67,4],[71,1,71,4],[68,1,68,2],[39,2,39,3],[40,2,40,3],[42,2,42,3],[43,2,43,3],[49,1,49,2],[49,3,49,4],[67,1,67,2],[50,1,50,2],[50,3,50,4],[80,2,80,4],[81,2,81,4],[82,2,82,4],[83,2,83,4],[167,2,167,4],[84,2,84,4],[88,2,88,4],[226,9,227,9],[226,10,227,10],[225,2,225,4],[226,2,227,2],[226,3,227,3],[226,4,227,4],[226,5,227,5],[226,8,227,8],[226,6,227,6],[226,7,227,7],[234,2,235,2],[234,3,235,3],[234,4,235,4],[266,2,267,2],[266,3,267,3],[266,4,267,4],[266,6,267,6],[266,7,267,7],[266,5,267,5],[234,5,235,5],[234,6,235,6],[234,7,235,7],[234,9,235,9],[234,8,235,8],[234,10,235,10],[245,2,246,2],[245,3,246,3],[245,4,246,4],[245,5,246,5],[245,6,246,6],[245,7,246,7],[245,8,246,8],[245,9,246,9],[245,10,246,10],[264,2,265,2],[264,3,265,3],[264,4,265,4],[264,5,265,5],[264,10,265,10],[266,8,267,8],[266,9,267,9],[276,5,277,5],[294,2,294,4],[295,2,295,4],[296,2,296,4],[266,10,267,10],[264,6,265,6],[264,7,265,7],[264,8,265,8],[264,9,265,9],[276,6,277,6],[276,7,277,7],[276,8,277,8],[276,9,277,9],[276,10,277,10],[320,2,321,2],[320,3,321,3],[320,4,321,4],[306,2,307,2],[306,3,307,3],[54,1,54,4],[297,2,297,4],[298,2,298,4],[299,2,299,4],[306,4,307,4],[312,2,313,2],[312,3,313,3],[312,4,313,4],[276,2,277,2],[276,3,277,3],[68,3,68,4],[85,2,85,4],[87,2,87,4],[89,2,89,4],[126,1,126,3],[217,1,217,4],[136,1,136,3],[93,1,93,3],[106,1,106,3],[341,2,342,2],[341,3,342,3],[341,4,342,4],[327,2,328,2],[327,3,328,3],[327,4,328,4],[335,2,336,2],[335,3,336,3],[335,4,336,4]]}
[null,"Годовой отчет за 2023 год"]
[null,"Открытое акционерное общество","Плещицы"]
[null,"Учетный номер плательщика","200110702"]
[null,"Информация об открытом акционерном обществе и его деятельности"]
[null,"по состоянию на 01 января 2024 г."]
[null,"4. Доля государства в уставном фонде эмитента (всего в %) :",100]
[null,"Вид собственности","Количество акций ,шт.",null,"Доля в уставном фонде, %"]
[null,"Республиканская",0,null,0]
[null,"Коммунальная - всего:",165625,null,100]
[null,"в том числе:","х",null,"х"]
[null,"областная ",0,null,0]
[null,"районная",165625,null,100]
[null,"городская",0,null,0]
[null,"5-6. Информация о дивидендах и акциях:"]
[null,"Показатель","Единица измерения","За отчетный период","За аналогичный период прошлого года"]
[null,"Количество акционеров, всего","лиц",1,1]
[null,"в том числе: юридических лиц","лиц",1,1]
[null,"       из них нерезидентов Республики Беларусь","лиц"]
[null,"в том числе: физических лиц","лиц"]
[null,"       из них нерезидентов Республики Беларусь","лиц"]
[null,"Начислено на выплату дивидендов в данном отчетном периоде","тысяч рублей",0,0]
[null,"Фактически выплаченные дивиденды в данном отчетном периоде","тысяч рублей",0,0]
[null,"Дивиденды, приходящиеся на одну простую (обыкновенную) акцию (включая налоги)","рублей",0,0]
[null,"Дивиденды, приходящиеся на одну привилегированную акцию (включая налоги) первого типа ___________","рублей",0,0]
[null,"Дивиденды, приходящиеся на одну привилегированную акцию (включая налоги) второго типа ___________","рублей",0,0]
[null,"Дивиденды, фактически выплаченные на одну простую (обыкновенную) акцию (включая налоги)","рублей",0,0]
[null,"Дивиденды, фактически выплаченные на одну привилегированную акцию (включая налоги) первого типа ___________","рублей",0,0]
[null,"Дивиденды, фактически выплаченные на одну привилегированную акцию (включая налоги) второго типа ___________","рублей",0,0]
[null,"Период, за который выплачивались дивиденды","первый квартал, полугодие, девять месяцев, год",null,"Х"]
[null,"Дата (даты) принятия решений о выплате дивидендов","число, месяц, год",null,"Х"]
[null,"Срок (сроки) выплаты дивидендов","число, месяц, год",null,"Х"]
[null,"Обеспеченность акции имуществом общества","рублей",253,236]
[null,"Количество акций, находящихся на балансе общества, - всего","штук",0,0]
[null,"в том числе:"]
[null,"поступившие в распоряжение общества:"]
[null,"дата зачисления акций на счет «депо» общества","количество акций, штук",null,"Срок реализации акций, поступивших в распоряжение общества"]
[null,null,0]
[null,null,0]
[null,null,0]
[null,null,0]
[null,null,0]
[null,null,0]
[null,null,0]
[null,null,0]
[null,"приобретенные в целях сокращения общего количества акций:"]
[null,"дата зачисления акций на счет «депо» общества",null,"количество акций, штук"]
[null,null,null,0]
[null,null,null,0]
[null,null,null,0]
[null,null,null,0]
[null,null,null,0]
[null,null,null,0]
[null,null,null,0]
[null,null,null,0]
[null,"7. Отдельные показатели деятельности открытого акционерного общества:"]
[null,"Наименование показателя","Единица измерения","За отчетный период","За аналогичный период прошлого года"]
[null,"Выручка от реализации продукции, товаров, работ,услуг ","тысяч рублей",14884,14458]
[null,"Себестоимость реализованной продукции, товаров, работ, услуг, управленческие расходы; расходы на реализацию","тысяч рублей",14391,12822]
[null,"Прибыль (убыток) до налогообложения - всего (Прибыль (убыток) отчетного периода)","тысяч рублей",{"$f":"SUM(D60:D62)","v":1639},{"$f":"SUM(E60:E62)","v":2900}]
[null,"в том числе: прибыль (убыток) от реализации продукции, товаров, работ, услуг","тысяч рублей",{"$f":"D57-D58","v":493},{"$f":"E57-E58","v":1636}]
[null,"прочие доходы и расходы по текущей деятельности","тысяч рублей",1165,1285]
[null,"прибыль (убыток) от инвестиционной и финансовой деятельности","тысяч рублей",-19,-21]
[null,"Налог на прибыль; изменение отложенных налоговых активов; изменение отложенных налоговых обязательств; прочие налоги и сборы, исчисляемые из прибыли (дохода); прочие платежи, исчисляемые из прибыли (дохода)","тысяч рублей"]
[null,"Чистая прибыль (убыток)","тысяч рублей",{"$f":"D59-D63","v":1639},{"$f":"E59-E63","v":2900}]
[null,"Нераспределенная прибыль (непокрытый убыток)","тысяч рублей",9927,8288]
[null,"Долгосрочная дебиторская задолженность ","тысяч рублей",90,106]
[null,"Долгосрочные обязательства","тысяч рублей",13518,15397]
[null,"10. Дата проведения годового общего собрания акционеров, на котором утверждены годовой отчет, бухгалтерский баланс, отчет о прибылях и убытках за отчетный 2023 год: ",null,"\"28\" марта 2024 г."]
[null,"Аудиторское заключение по бухгалтерской и (или) финансовой отчетности подготовлено:",null,"\"18\" марта 2024 г."]
[null,"Аудит проведен (наименование аудиторской организации (для индивидуального предпринимателя - фамилия, собственное имя, отчество (если таковое имеется)); местонахождение аудиторской организации (для индивидуального предпринимателя - место жительства); дата государственной регистрации, регистрационный номер в ЕГР:",null,"Индивидуальный предприниматель Самосюк Сергей Викторович, 220021 г. Минск, ул. Одесская, 20А-97, зарегистрирован Минским ГИК 13.04.2012 г. № 191042745"]
[null,"Период, за который проводился аудит:",null,"с 01 января 2023 года                 по 31 декабря 2023 года"]
[null,"Аудиторское мнение о достоверности бухгалтерской и (или) финансовой отчетности, а в случае выявленных нарушений в бухгалтерской и (или) финансовой отчетности - сведения о данных нарушениях:"]
[null,"Прилагаемая годовая бухгалтерская отчетность достоверно во всех существенных аспектах отражает финансовое положение ОАО «Плещицы» по состоянию на 31 декабря 2023 года, финансовые результаты ее деятельности и изменение ее финансового положения, в том числе движение денежных средств за год, закончившийся на указанную дату, в соответствии с законодательством Республики Беларусь"]
[null,"Дата и источник опубликования аудиторского заключения по бухгалтерской (финансовой) отчетности в полном объеме:"]
[null,"ЕПФР, официальный сайт открытого акционерного общества в глобальной компьютерной сети Интернет",null,"\"08\" апреля 2024 г."]
[null,"13. Сведения о применении открытым акционерным обществом Свода правил корпоративного поведения (только в составе годового отчета): "]
[null,"не применяется"]
[null,"14. Адрес официального сайта открытого акционерного общества в глобальной компьютерной сети Интернет:","pleshicy.epfr.by"]
[null,"Бухгалтерский баланс на  31 декабря 2023 года"]
[null,"Организация",{"$f":"C2","v":"Плещицы"}]
[null,"Учетный номер плательщика",{"$f":"C3","v":"200110702"}]
[null,"Вид экономической деятельности","01500"]
[null,"Организационно-правовая форма","Открытое акционерное общество"]
[null,"Орган управления","Общее собрание акционеров, наблюдательный совет, директор"]
[null,"Единица измерения","тыс.руб"]
[null,"Адрес","Республика Беларусь 225728, Брестская область, Пинский район, аг. Плещицы, ул. Пинская 23б-4"]
[]
[null,"Дата утверждения",{"$f":"D68","v":"\"28\" марта 2024 г."}]
[null,"Дата отправки"]
[null,"Дата принятия"]
[]
[null,"Активы","Код строки","На 31 декабря 2023 г.","На 31 декабря 2022 г."]
[null,1,2,3,4]
[null,"I. ДОЛГОСРОЧНЫЕ АКТИВЫ"]
[null,"Основные средства",110,45404,42881]
[null,"Нематериальные активы",120]
[null,"Доходные вложения в материальные активы",130]
[null,"в том числе:                                                                            инвестиционная недвижимость",131]
[null,"предметы финансовой аренды (лизинга)",132]
[null,"прочие доходные вложения в материальные активы",133]
[null,"Вложения в долгосрочные активы",140,null,39]
[null,"Долгосрочные финансовые вложения",150,1,1]
[null,"Отложенные налоговые активы",160]
[null,"Долгосрочная дебиторская задолженность",170,90,106]
[null,"Прочие долгосрочные активы",180]
[null,"Итого по разделу I  ",190,45495,43027]
[null,"II. КРАТКОСРОЧНЫЕ АКТИВЫ"]
[null,"Запасы",210,13607,13138]
[null,"в том числе: "]
[null,"материалы",211,5464,4967]
[null,"животные на выращивании и откорме",212,6009,6303]
[null,"незавершенное производство",213,2127,1859]
[null,"готовая продукция и товары",214,7,9]
[null,"товары отгруженные",215]
[null,"прочие запасы",216]
[null,"Долгосрочные активы, предназначенные для реализации",220]
[null,"Расходы будущих периодов",230]
[null,"Налог на добавленную стоимость по приобретенным товарам, работам, услугам",240,496,388]
[null,"Краткосрочная дебиторская задолженность",250,224,400]
[null,"Краткосрочные финансовые вложения",260]
[null,"Денежные средства и эквиваленты денежных средств",270,40,50]
[null,"Прочие краткосрочные активы",280]
[null,"Итого по разделу II",290,14367,13976]
[null,"БАЛАНС",300,59862,57003]
[null,"Собственный капитал и обязательства","Код строки","На 31 декабря 2023 г.","На 31 декабря 2022 г."]
[null,1,2,3,4]
[null,"III. СОБСТВЕННЫЙ КАПИТАЛ"]
[null,"Уставный капитал",410,16563,16563]
[null,"Неоплаченная часть уставного капитала",420]
[null,"Собственные акции (доли в уставном капитале)",430]
[null,"Резервный капитал",440]
[null,"Добавочный капитал",450,15384,14193]
[null,"Нераспределенная прибыль (непокрытый убыток)",460,9927,8288]
[null,"Чистая прибыль (убыток) отчетного периода",470]
[null,"Целевое финансирование",480]
[null,"Итого по разделу III",490,41874,39044]
[null,"IV. ДОЛГОСРОЧНЫЕ ОБЯЗАТЕЛЬСТВА"]
[null,"Долгосрочные кредиты и займы",510,6773,8475]
[null,"Долгосрочные обязательства по лизинговым платежам",520,2842,2801]
[null,"Отложенные налоговые обязательства",530]
[null,"Доходы будущих периодов",540,1053,1197]
[null,"Резервы предстоящих платежей",550]
[null,"Прочие долгосрочные обязательства",560,2850,2924]
[null,"Итого по разделу IV",590,13518,15397]
[null,"V. КРАТКОСРОЧНЫЕ ОБЯЗАТЕЛЬСТВА"]
[null,"Краткосрочные кредиты и займы",610,478,474]
[null,"Краткосрочная часть долгосрочных обязательств",620,1707,588]
[null,"Краткосрочная кредиторская задолженность",630,2285,1500]
[null,"В том числе: "]
[null,"поставщикам, подрядчикам, исполнителям",631,1005,485]
[null,"по авансам полученным",632]
[null,"по налогам и сборам",633,73,56]
[null,"по социальному страхованию и обеспечению",634,69,72]
[null,"по оплате труда",635,280,248]
[null,"по лизинговым платежам",636,855,634]
[null,"собственнику имущества (учредителям, участникам)",637]
[null,"прочим кредиторам",638,3,5]
[null,"Обязательства, предназначенные для реализации",640]
[null,"Доходы будущих периодов",650]
[null,"Резервы предстоящих платежей",660]
[null,"Прочие краткосрочные обязательства",670]
[null,"Итого по разделу V",690,4470,2562]
[null,"БАЛАНС",700,59862,57003]
[]
[null,"Отчет о прибылях и убытках"]
[null,"за январь-декабрь 2023 г."]
[null,"Организация",{"$f":"C80","v":"Плещицы"}]
[null,"Учетный номер плательщика",{"$f":"C81","v":"200110702"}]
[null,"Вид экономической деятельности","01500"]
[null,"Организационно-правовая форма","Открытое акционерное общество"]
[null,"Орган управления","Общее собрание акционеров, наблюдательный совет, директор"]
[null,"Единица измерения","тыс.руб"]
[null,"Адрес","Республика Беларусь 225728, Брестская область, Пинский район, аг. Плещицы, ул. Пинская 23б-4"]
[null,"Наименование показателей","Код строки","На 31 декабря 2023 г.","На 31 декабря 2022 г."]
[null,1,2,3,4]
[null,"Выручка от реализации продукции, товаров, работ, услуг ","010","14884","14458"]
[null,"Себестоимость реализованной продукции, товаров, работ, услуг","020","13640","12266"]
[null,"Валовая прибыль ","030","1244","2192"]
[null,"Управленческие расходы","040","751","556"]
[null,"Расходы на реализацию","050"]
[null,"Прибыль (убыток) от реализации продукции, товаров, работ, услуг ","060","493","1636"]
[null,"Прочие доходы по текущей деятельности","070","1198","1322"]
[null,"Прочие расходы по текущей деятельности","080","33","37"]
[null,"Прибыль (убыток) от текущей деятельности                          ","090","1658","2921"]
[null,"Доходы по инвестиционной деятельности","100","412","225"]
[null,"в том числе: "]
[null,"доходы от выбытия основных средств, нематериальных активов и других долгосрочных активов","101"]
[null,"доходы от участия в уставном капитале других организаций","102"]
[null,"проценты к получению","103",null,"1"]
[null,"прочие доходы по инвестиционной деятельности","104","412","224"]
[null,"Расходы по инвестиционной деятельности","110"]
[null,"в том числе: "]
[null,"расходы от выбытия основных средств, нематериальных активов и других долгосрочных активов","111"]
[null,"прочие расходы от инвестиционной деятельности","112"]
[null,"Доходы по финансовой деятельности","120"]
[null,"в том числе: "]
[null,"курсовые разницы от пересчета активов и обязательств","121"]
[null,"прочие доходы по финансовой деятельности","122"]
[null,"Расходы по финансовой деятельности","130","431","246"]
[null,"В том числе:"]
[null,"проценты к уплате","131","228","244"]
[null,"курсовые разницы от пересчета активов и обязательств","132",null,"2"]
[null,"прочие расходы от финансовой деятельности","133","203"]
[null,"Прибыль (убыток) от инвестиционной и финансовой деятельности","140","-19","-21"]
[null,"Прибыль (убыток) до налогообложения","150","1639","2900"]
[null,"Налог на прибыль","160"]
[null,"Изменение отложенных налоговых активов","170"]
[null,"Изменение отложенных налоговых обязательств","180"]
[null,"Прочие налоги и сборы, исчисляемые из прибыли (дохода)","190"]
[null,"Прочие платежи, исчисляемые из прибыли (дохода)","200"]
[null,"Чистая прибыль(убыток)","210","1639","2900"]
[null,"Результат от переоценки долгосрочных активов, не включаемый в чистую прибыль (убыток) ","220","1191","14193"]
[null,"Результат от прочих операций, не включаемый в чистую прибыль (убыток)","230",null,"-488"]
[null,"Совокупная прибыль (убыток)","240","2830","16605"]
[null,"Базовая прибыль (убыток) на акцию","250"]
[null,"Разводненная прибыль (убыток) на акцию","260"]
[]
[null,"Отчет об изменении собственного капитала"]
[null,"за январь-декабрь 2023 г."]
[null,"Организация",{"$f":"C80","v":"Плещицы"}]
[null,"Учетный номер плательщика",{"$f":"C81","v":"200110702"}]
[null,"Вид экономической деятельности","01500"]
[null,"Организационно-правовая форма","Открытое акционерное общество"]
[null,"Орган управления","Общее собрание акционеров, наблюдательный совет, директор"]
[null,"Единица измерения","тыс.руб"]
[null,"Адрес","Республика Беларусь 225728, Брестская область, Пинский район, аг. Плещицы, ул. Пинская 23б-4"]
[null,"Наименование показателей","Код строки","Уставный капитал","Неоплаченная часть уставного капитала","Собственные акции (доли в уставном капитале)","Резервный капитал","Добавочный капитал","Нераспределенная прибыль (непокрытый убыток)","Чистая прибыль (убыток)","Итого"]
[]
[null,1,2,3,4,5,6,7,8,9,10]
[null,"Остаток на 31.12.2021","010",16563,null,null,null,null,6170,null,22733]
[null,"Корректировки в связи с изменением учетной политики","020"]
[null,"Корректировки в связи с исправлением ошибок","030"]
[null,"Скорректированный остаток на 31.12.2021","040",16563,null,null,null,null,6170,null,22733]
[null,"За январь-декабрь 2022 г. Увеличение собственного капитала - всего","050",null,null,null,null,14193,2900,null,17093]
[null,"    в том числе:","051",null,null,null,null,null,2900,null,2900]
[null,"    чистая прибыль"]
[null,"    переоценка долгосрочных активов","052",null,null,null,null,14193,null,null,14193]
[null,"    доходы от прочих операций, не включаемые в чистую прибыль (убыток)","053"]
[null,"    выпуск дополнительных акций","054"]
[null,"    увеличение номинальной стоимости акций","055"]
[null,"    вклады собственника имущества (учредителей, участников)","056"]
[null,"    реорганизация","057"]
[null,null,"058"]
[null,null,"059"]
[null,"Уменьшение собственного капитала - всего","060",null,null,null,null,null,488,null,488]
[null,"    в том числе:","061"]
[null,"    убыток"]
[null,"    переоценка долгосрочных активов","062"]
[null,"    расходы от прочих операций, не включаемые в чистую прибыль (убыток)","063",null,null,null,null,null,488,null,488]
[null,"    уменьшение номинальной стоимости акций","064"]
[null,"    выкуп акций (долей в уставном капитале)","065"]
[null,"    дивиденды и другие доходы от участия в уставном капитале организации","066"]
[null,"    реорганизация","067"]
[]
[]
[null,"Изменение уставного капитала","070"]
[null,"Изменение резервного капитала","080"]
[null,"Изменение добавочного капитала","090"]
[null,"Остаток на 31.12.2022","100",16563,null,null,null,14193,8582,null,39338]
[null,"Остаток на 31.12.2022","110",16563,null,null,null,14193,8582,null,39338]
[null,"Корректировки в связи с изменением учетной политики","120"]
[null,"Корректировки в связи с исправлением ошибок","130",null,null,null,null,null,-294,null,-294]
[null,"Скорректированный остаток на 31.12.2022","140",16563,null,null,null,14193,8288,null,39044]
[null,"За январь-декабрь 2023 г. Увеличение собственного капитала - всего","150",null,null,null,null,1191,1639,null,2830]
[null,"    в том числе:",151,null,null,null,null,null,1639,null,1639]
[null,"    чистая прибыль"]
[null,"    переоценка",152,null,null,null,null,1191,null,null,1191]
[null,"     долгосрочных активов"]
[null,"     доходы от прочих операций, не включаемые в чистую прибыль (убыток)",153]
[null,"    выпуск дополнительных акций",154]
[null,"    увеличение номинальной стоимости акций",155]
[null,"    вклады собственника имущества (учредителей, участников)",156]
[null,"   реорганизация",157]
[null,null,158]
[null,null,159]
[null,"Уменьшение собственного капитала - всего","160"]
[null,"    в том числе:",161]
[null,"    убыток"]
[null,"    переоценка долгосрочных активов",162]
[null,"    расходы от прочих операций, не включаемые в чистую прибыль (убыток)",163]
[null,"    уменьшение номинальной стоимости акций",164]
[null,"    выкуп акций (долей в уставном капитале)",165]
[null,"    дивиденды и другие доходы от участия в уставном капитале организации",166]
[null,"    реорганизация",167]
[null,null,168]
[null,null,169]
[null,"Изменение уставного капитала",170]
[null,"Изменение резервного капитала",180]
[null,"Изменение добавочного капитала",190]
[null,"Остаток на 31 декабря 2023",200,16563,null,null,null,15384,9927,null,41874]
[]
[null,"Отчет о движении денежных средств"]
[null,"за январь-декабрь 2023 г."]
[null,"Организация",{"$f":"C80","v":"Плещицы"}]
[null,"Учетный номер плательщика",{"$f":"C81","v":"200110702"}]
[null,"Вид экономической деятельности","01500"]
[null,"Организационно-правовая форма","Открытое акционерное общество"]
[null,"Орган управления","Общее собрание акционеров, наблюдательный совет, директор"]
[null,"Единица измерения","тыс.руб"]
[null,"Адрес","Республика Беларусь 225728, Брестская область, Пинский район, аг. Плещицы, ул. Пинская 23б-4"]
[]
[]
[null,"Наименование показателей","Код строки","За янв.-дек. 2023 г.","За янв.-дек. 2022 г."]
[null,1,2,3,4]
[null,"Движение денежных средств по текущей деятельности"]
[null,"Поступило денежных средств - всего","020",15415,14346]
[null,"     в том числе:","021",15095,13983]
[null,"     от покупателей продукции, товаров, заказчиков работ, услуг"]
[null,"     от покупателей материалов и других запасов","022"]
[null,"     роялти","023"]
[null,"     прочие поступления","024",320,363]
[null,"Направлено денежных средств - всего","030",13256,12585]
[null,"     в том числе:","031",7178,7190]
[null,"     на приобретение запасов, работ, услуг"]
[null,"     на оплату труда","032",3941,3357]
[null,"     на уплату налогов и сборов","033",793,736]
[null,"     на прочие выплаты","034",1344,1302]
[null,"Результат движения денежных средств по текущей деятельности ","040",2159,1761]
[null,"Движение денежных средств по инвестиционной деятельности"]
[null,"Поступило денежных средств - всего","050",50,36]
[null,"      в том числе:","051",50,35]
[null,"      от покупателей основных средств, нематериальных активов и других    долгосрочных активов"]
[null,"      возврат предоставленных займов","052"]
[null,"      доходы от участия в уставных капиталах других организаций","053"]
[null,"      проценты","054",null,1]
[null,"      прочие поступления","055"]
[null,"Направлено денежных средств - всего","060",283,110]
[null,"      в том числе:","061",283,110]
[null,"      на приобретение и создание основных средств, нематериальных активов и других долгосрочных активов"]
[null,"      на предоставление займов","062"]
[null,"      на вклады в уставные капиталы других организаций","063"]
[null,"      прочие выплаты","064"]
[null,"Результат движения денежных средств по инвестиционной деятельности ","070",-233,-74]
[null,"Движение денежных средств по финансовой деятельности"]
[null,"Поступило денежных средств - всего","080",783,608]
[null,"      в том числе:","081",750,523]
[null,"      кредиты и займы"]
[null,"      от выпуска акций  ","082"]
[null,"      вклады собственника имущества (учредителей, участников)","083"]
[null,"      прочие поступления","084",33,85]
[null,"Направлено денежных средств - всего","090",2719,2426]
[null,"      в том числе:","091",1329,1263]
[null,"      на погашение кредитов и займов"]
[null,"      на выплаты дивидендов и других доходов от участия в уставном капитале организации","092"]
[null,"      на выплаты процентов","093",228,244]
[null,"      на лизинговые платежи","094",1083,859]
[null,"      прочие выплаты","095",79,60]
[null,"Результат движения денежных средств по финансовой деятельности ",100,-1936,-1818]
[null,"Результат движения денежных средств по текущей, инвестиционной и финансовой деятельности ",110,-10,-131]
[null,"Остаток денежных средств и эквивалентов денежных средств на 31.12.2022",120,50,181]
[null,"Остаток денежных средств и эквивалентов денежных средств на 31.12.2023",130,40,50]
[null,"Влияние изменений курсов иностранных валют ",140]